[Event "Late-Titled-Tuesday-Blitz-August-29-2023"]
[Site "Chess.com"]
[Date "2023.08.29"]
[Round "6"]
[White "Firouzja2003"]
[Black "Beca95"]
[Result "1-0"]
[WhiteElo "3108"]
[BlackElo "2947"]
[TimeControl "180+1"]
[EndTime "15:06:28 PDT"]
[Termination "Firouzja2003 won on time"]

1. e4 {[%clk 0:02:57.6]} 1... c5 {[%clk 0:02:59.5]} 2. Nf3 {[%clk 0:02:57.3]}
2... d6 {[%clk 0:03:00]} 3. d4 {[%clk 0:02:58]} 3... cxd4 {[%clk 0:03:00.3]} 4.
Nxd4 {[%clk 0:02:58.9]} 4... Nf6 {[%clk 0:03:00.3]} 5. Nc3 {[%clk 0:02:59.6]}
5... a6 {[%clk 0:02:59.9]} 6. Bg5 {[%clk 0:03:00.3]} 6... Nbd7 {[%clk
0:02:58.3]} 7. a3 {[%clk 0:02:59]} 7... h6 {[%clk 0:02:56.9]} 8. Be3 {[%clk
0:02:53.1]} 8... b5 {[%clk 0:02:56.4]} 9. f3 {[%clk 0:02:48.7]} 9... Bb7 {[%clk
0:02:55.3]} 10. Qd2 {[%clk 0:02:49.4]} 10... Rc8 {[%clk 0:02:53.5]} 11. O-O-O
{[%clk 0:02:48.5]} 11... g6 {[%clk 0:02:50.2]} 12. Kb1 {[%clk 0:02:43.2]} 12...
h5 {[%clk 0:02:48.8]} 13. Bg5 {[%clk 0:02:37.4]} 13... Bg7 {[%clk 0:02:47.6]}
14. h4 {[%clk 0:02:36.5]} 14... Qb6 {[%clk 0:02:22.6]} 15. Be2 {[%clk
0:02:24.2]} 15... Ba8 {[%clk 0:01:47.8]} 16. Be3 {[%clk 0:02:22.5]} 16... Qb8
{[%clk 0:01:46.4]} 17. Na2 {[%clk 0:02:20.4]} 17... Ne5 {[%clk 0:01:38.4]} 18.
Qa5 {[%clk 0:02:14.2]} 18... Bb7 {[%clk 0:01:31.8]} 19. Nb4 {[%clk 0:02:07.9]}
19... Qa8 {[%clk 0:01:31.9]} 20. a4 {[%clk 0:02:03.9]} 20... Nc4 {[%clk
0:01:32.3]} 21. Bxc4 {[%clk 0:02:04]} 21... bxc4 {[%clk 0:01:33]} 22. Ne2 {[%clk
0:02:00.5]} 22... O-O {[%clk 0:01:29.1]} 23. Nc3 {[%clk 0:01:59.5]} 23... Rfe8
{[%clk 0:01:23.5]} 24. Bd4 {[%clk 0:01:45.4]} 24... Nd7 {[%clk 0:01:13.8]} 25.
Nbd5 {[%clk 0:01:45.3]} 25... Bxd4 {[%clk 0:01:09.1]} 26. Rxd4 {[%clk
0:01:44.9]} 26... Bxd5 {[%clk 0:01:08.2]} 27. Nxd5 {[%clk 0:01:43.4]} 27... Rc5
{[%clk 0:01:08.1]} 28. Qc3 {[%clk 0:01:40.8]} 28... Qc6 {[%clk 0:01:06]} 29. g4
{[%clk 0:01:12.7]} 29... hxg4 {[%clk 0:00:53.7]} 30. h5 {[%clk 0:01:06.1]} 30...
g5 {[%clk 0:00:53.8]} 31. h6 {[%clk 0:01:00.5]} 31... f6 {[%clk 0:00:51.9]} 32.
fxg4 {[%clk 0:00:51.3]} 32... Ne5 {[%clk 0:00:47.2]} 33. h7+ {[%clk 0:00:39.7]}
33... Kh8 {[%clk 0:00:45.8]} 34. Qa3 {[%clk 0:00:39.9]} 34... Qc8 {[%clk
0:00:18.9]} 35. Ne3 {[%clk 0:00:36.3]} 35... Nxg4 {[%clk 0:00:15.7]} 36. Nf5
{[%clk 0:00:29.2]} 36... c3 {[%clk 0:00:14.9]} 37. Qb3 {[%clk 0:00:27.1]} 37...
Ne5 {[%clk 0:00:13.5]} 38. Qg8+ {[%clk 0:00:19.3]} 38... Rxg8 {[%clk 0:00:11.8]}
39. hxg8=Q+ {[%clk 0:00:20.2]} 39... Kxg8 {[%clk 0:00:11.9]} 40. Nxe7+ {[%clk
0:00:20.8]} 40... Kg7 {[%clk 0:00:10.5]} 41. Nxc8 {[%clk 0:00:20.8]} 41... Rxc8
{[%clk 0:00:11]} 42. b4 {[%clk 0:00:15.9]} 42... Rb8 {[%clk 0:00:09.6]} 43. Ka2
{[%clk 0:00:15.4]} 43... Nc6 {[%clk 0:00:08.6]} 44. Rxd6 {[%clk 0:00:13.5]}
44... Nxb4+ {[%clk 0:00:09.1]} 45. Kb3 {[%clk 0:00:14.2]} 45... Nd5+ {[%clk
0:00:07.1]} 46. Kc4 {[%clk 0:00:12.7]} 46... Ne3+ {[%clk 0:00:07.1]} 47. Kxc3
{[%clk 0:00:12.9]} 47... Rc8+ {[%clk 0:00:07.5]} 48. Kd3 {[%clk 0:00:13.2]}
48... Nxc2 {[%clk 0:00:07.7]} 49. Rb6 {[%clk 0:00:10.5]} 49... a5 {[%clk
0:00:06.7]} 50. e5 {[%clk 0:00:09.2]} 50... fxe5 {[%clk 0:00:05]} 51. Ke4 {[%clk
0:00:05.3]} 51... Nb4 {[%clk 0:00:04.4]} 52. Rd1 {[%clk 0:00:04.6]} 52... Rc7
{[%clk 0:00:02.6]} 53. Kf5 {[%clk 0:00:03.9]} 53... Rf7+ {[%clk 0:00:02.6]} 54.
Kxg5 {[%clk 0:00:03.7]} 54... Re7 {[%clk 0:00:01.8]} 55. Rf1 {[%clk 0:00:02.6]}
1-0

[Event "Late-Titled-Tuesday-Blitz-August-29-2023"]
[Site "Chess.com"]
[Date "2023.08.29"]
[Round "6"]
[White "Rud_Makarian"]
[Black "Alexander_Moskalenko"]
[Result "1-0"]
[WhiteElo "3010"]
[BlackElo "2828"]
[TimeControl "180+1"]
[EndTime "15:06:41 PDT"]
[Termination "Rud_Makarian won on time"]

1. d4 {[%clk 0:03:00.9]} 1... Nf6 {[%clk 0:03:00.2]} 2. c4 {[%clk 0:03:01.6]}
2... g6 {[%clk 0:03:00.7]} 3. Nc3 {[%clk 0:03:01.6]} 3... Bg7 {[%clk 0:02:57.1]}
4. e4 {[%clk 0:03:01.8]} 4... d6 {[%clk 0:02:57.8]} 5. Be2 {[%clk 0:03:02.3]}
5... O-O {[%clk 0:02:58.5]} 6. Be3 {[%clk 0:03:03]} 6... c5 {[%clk 0:02:59.1]}
7. d5 {[%clk 0:03:02.9]} 7... e6 {[%clk 0:02:59.5]} 8. Nf3 {[%clk 0:03:03.1]}
8... exd5 {[%clk 0:02:59.8]} 9. cxd5 {[%clk 0:03:03.6]} 9... b5 {[%clk
0:02:58.9]} 10. e5 {[%clk 0:03:03.9]} 10... dxe5 {[%clk 0:02:58.6]} 11. Bxc5
{[%clk 0:03:04.4]} 11... Re8 {[%clk 0:02:59.3]} 12. Bxb5 {[%clk 0:03:05]} 12...
Nbd7 {[%clk 0:02:50.2]} 13. Be3 {[%clk 0:03:05.2]} 13... e4 {[%clk 0:02:48.2]}
14. Nd4 {[%clk 0:03:03.4]} 14... Ne5 {[%clk 0:02:41]} 15. Nc6 {[%clk 0:02:56.3]}
15... Nxc6 {[%clk 0:02:32.9]} 16. Bxc6 {[%clk 0:02:57.2]} 16... Ba6 {[%clk
0:02:23.2]} 17. Qa4 {[%clk 0:02:53.2]} 17... Bd3 {[%clk 0:02:23.2]} 18. O-O-O
{[%clk 0:02:37.8]} 18... Rc8 {[%clk 0:02:23.1]} 19. Rxd3 {[%clk 0:02:28.1]}
19... exd3 {[%clk 0:02:21.9]} 20. Rd1 {[%clk 0:02:28.6]} 20... Nxd5 {[%clk
0:02:10.8]} 21. Rxd3 {[%clk 0:02:06.9]} 21... Bxc3 {[%clk 0:00:58.3]} 22. bxc3
{[%clk 0:01:54.3]} 22... Qf6 {[%clk 0:00:53.3]} 23. Bxe8 {[%clk 0:01:16.4]}
23... Nxc3 {[%clk 0:00:52]} 24. Qd7 {[%clk 0:01:16.8]} 24... Nxa2+ {[%clk
0:00:41.9]} 25. Kd1 {[%clk 0:01:13.6]} 25... Rb8 {[%clk 0:00:19.9]} 26. Bd4
{[%clk 0:01:08.1]} 26... Qf4 {[%clk 0:00:16.2]} 27. Qxf7+ {[%clk 0:00:47.4]}
27... Qxf7 {[%clk 0:00:16.1]} 28. Bxf7+ {[%clk 0:00:48.3]} 28... Kxf7 {[%clk
0:00:17]} 29. Ra3 {[%clk 0:00:49.2]} 29... Nb4 {[%clk 0:00:14]} 30. Rxa7+ {[%clk
0:00:49.1]} 30... Ke6 {[%clk 0:00:14.4]} 31. Be3 {[%clk 0:00:42.1]} 31... h5
{[%clk 0:00:12.6]} 32. Ke2 {[%clk 0:00:41.5]} 32... Nd5 {[%clk 0:00:12.7]} 33.
Bd4 {[%clk 0:00:39.5]} 33... Rb4 {[%clk 0:00:12.8]} 34. Ba1 {[%clk 0:00:27.9]}
34... Rb3 {[%clk 0:00:11.1]} 35. g3 {[%clk 0:00:27.3]} 35... Nb4 {[%clk
0:00:06]} 36. Bd4 {[%clk 0:00:22.3]} 36... Nc6 {[%clk 0:00:06]} 37. Ra6 {[%clk
0:00:22.6]} 37... Kd5 {[%clk 0:00:06.5]} 38. Be3 {[%clk 0:00:22.8]} 38... Rb2+
{[%clk 0:00:05.8]} 39. Kf3 {[%clk 0:00:23]} 39... Rb3 {[%clk 0:00:06.7]} 40. Kg2
{[%clk 0:00:23]} 40... Rc3 {[%clk 0:00:07.1]} 41. Ra8 {[%clk 0:00:23]} 41... Ke6
{[%clk 0:00:07.4]} 42. Rg8 {[%clk 0:00:20.5]} 42... Kf7 {[%clk 0:00:07.4]} 43.
Rc8 {[%clk 0:00:21.1]} 43... Rc2 {[%clk 0:00:07.5]} 44. Rc7+ {[%clk 0:00:20.3]}
44... Ke6 {[%clk 0:00:08]} 45. h4 {[%clk 0:00:19.5]} 45... Kf6 {[%clk
0:00:05.4]} 46. Rb7 {[%clk 0:00:18.3]} 46... Ke6 {[%clk 0:00:04.8]} 47. Kf3
{[%clk 0:00:18.2]} 47... Ne5+ {[%clk 0:00:05.1]} 48. Ke4 {[%clk 0:00:18.5]}
48... Ng4 {[%clk 0:00:05.8]} 49. Rb6+ {[%clk 0:00:15.5]} 49... Kf7 {[%clk
0:00:06.2]} 50. Bd4 {[%clk 0:00:15.3]} 50... Nxf2+ {[%clk 0:00:06.5]} 51. Kf4
{[%clk 0:00:12.5]} 51... Ng4 {[%clk 0:00:06.5]} 52. Kg5 {[%clk 0:00:12.9]} 52...
Rc4 {[%clk 0:00:06.6]} 53. Rb7+ {[%clk 0:00:10.4]} 53... Ke6 {[%clk 0:00:06.7]}
54. Bg7 {[%clk 0:00:10.9]} 54... Re4 {[%clk 0:00:05.9]} 55. Kxg6 {[%clk
0:00:08.4]} 55... Re3 {[%clk 0:00:06.5]} 56. Rb6+ {[%clk 0:00:07.2]} 56... Ke7
{[%clk 0:00:06.2]} 57. Kxh5 {[%clk 0:00:07.4]} 57... Rxg3 {[%clk 0:00:06.6]} 58.
Rg6 {[%clk 0:00:08.1]} 58... Kf7 {[%clk 0:00:06.3]} 59. Bd4 {[%clk 0:00:07]}
59... Ne5 {[%clk 0:00:01.5]} 60. Rxg3 {[%clk 0:00:05.9]} 1-0

[Event "Late-Titled-Tuesday-Blitz-August-29-2023"]
[Site "Chess.com"]
[Date "2023.08.29"]
[Round "6"]
[White "BlackBoarder"]
[Black "stasOR4ik"]
[Result "1-0"]
[WhiteElo "2745"]
[BlackElo "2473"]
[TimeControl "180+1"]
[EndTime "15:06:45 PDT"]
[Termination "BlackBoarder won by resignation"]

1. e4 {[%clk 0:02:56.6]} 1... c6 {[%clk 0:02:59.7]} 2. Nf3 {[%clk 0:02:56.4]}
2... d5 {[%clk 0:03:00.1]} 3. Nc3 {[%clk 0:02:56.7]} 3... dxe4 {[%clk
0:03:00.3]} 4. Nxe4 {[%clk 0:02:57.6]} 4... Nf6 {[%clk 0:03:00.8]} 5. Nxf6+
{[%clk 0:02:58.3]} 5... exf6 {[%clk 0:03:01.7]} 6. Bc4 {[%clk 0:02:58.6]} 6...
Bd6 {[%clk 0:03:01.7]} 7. Qe2+ {[%clk 0:02:58.9]} 7... Qe7 {[%clk 0:03:01.6]} 8.
Qxe7+ {[%clk 0:02:58.9]} 8... Bxe7 {[%clk 0:03:02.5]} 9. O-O {[%clk 0:02:59.4]}
9... Be6 {[%clk 0:03:00.5]} 10. Be2 {[%clk 0:02:55.7]} 10... Nd7 {[%clk
0:02:59.1]} 11. Nd4 {[%clk 0:02:55.3]} 11... O-O-O {[%clk 0:02:55]} 12. Nxe6
{[%clk 0:02:53.8]} 12... fxe6 {[%clk 0:02:55.9]} 13. d4 {[%clk 0:02:53.3]} 13...
e5 {[%clk 0:02:47.6]} 14. Be3 {[%clk 0:02:44.6]} 14... exd4 {[%clk 0:02:40]} 15.
Bxd4 {[%clk 0:02:45.5]} 15... Bc5 {[%clk 0:02:40.2]} 16. Bc3 {[%clk 0:02:44.1]}
16... Ne5 {[%clk 0:02:36.9]} 17. g3 {[%clk 0:02:28.4]} 17... Rhe8 {[%clk
0:02:33.5]} 18. Kg2 {[%clk 0:02:25.5]} 18... Kc7 {[%clk 0:02:29.5]} 19. Rad1
{[%clk 0:02:19.7]} 19... Rxd1 {[%clk 0:02:25.8]} 20. Rxd1 {[%clk 0:02:19]} 20...
Rd8 {[%clk 0:02:24.1]} 21. Rxd8 {[%clk 0:02:16.7]} 21... Kxd8 {[%clk 0:02:23.9]}
22. f4 {[%clk 0:02:08.8]} 22... Nd7 {[%clk 0:02:18.6]} 23. Bd3 {[%clk
0:02:05.3]} 23... h6 {[%clk 0:02:18.5]} 24. Kf3 {[%clk 0:02:02.1]} 24... Ke7
{[%clk 0:02:16.7]} 25. Ke4 {[%clk 0:01:59.7]} 25... Bg1 {[%clk 0:01:52.7]} 26.
h3 {[%clk 0:01:52.2]} 26... Nc5+ {[%clk 0:01:43.6]} 27. Kf5 {[%clk 0:01:46.8]}
27... Nxd3 {[%clk 0:01:43.4]} 28. cxd3 {[%clk 0:01:47.4]} 28... Kf7 {[%clk
0:01:43.6]} 29. g4 {[%clk 0:01:44.9]} 29... Bc5 {[%clk 0:01:32.4]} 30. Ke4
{[%clk 0:01:32.4]} 30... Ke6 {[%clk 0:01:28.6]} 31. h4 {[%clk 0:01:17.3]} 31...
Bf2 {[%clk 0:01:23.3]} 32. h5 {[%clk 0:01:14.3]} 32... Bh4 {[%clk 0:01:14.8]}
33. Bb4 {[%clk 0:01:12.1]} 33... Kf7 {[%clk 0:01:10.9]} 34. Bc5 {[%clk
0:00:48.1]} 34... a6 {[%clk 0:01:10.4]} 35. Be3 {[%clk 0:00:35.3]} 35... Be1
{[%clk 0:01:08.7]} 36. Kf5 {[%clk 0:00:30.5]} 36... Bb4 {[%clk 0:01:06.8]} 37.
a3 {[%clk 0:00:27.3]} 37... Be7 {[%clk 0:01:06.6]} 38. Bd2 {[%clk 0:00:19.2]}
38... Bd6 {[%clk 0:01:02.6]} 39. Bb4 {[%clk 0:00:14.1]} 39... Bc7 {[%clk
0:01:01.7]} 40. Bc5 {[%clk 0:00:13.5]} 40... Ba5 {[%clk 0:01:00.8]} 41. b4
{[%clk 0:00:12.8]} 41... Bc7 {[%clk 0:01:00.9]} 42. a4 {[%clk 0:00:12.2]} 42...
a5 {[%clk 0:00:57.1]} 43. bxa5 {[%clk 0:00:06.7]} 43... Bxa5 {[%clk 0:00:57.1]}
44. Bd6 {[%clk 0:00:06.9]} 44... b5 {[%clk 0:00:56.2]} 45. axb5 {[%clk
0:00:06.1]} 45... cxb5 {[%clk 0:00:57.1]} 46. Ke4 {[%clk 0:00:03.7]} 46... b4
{[%clk 0:00:54.6]} 47. Kd4 {[%clk 0:00:03.9]} 47... b3 {[%clk 0:00:55]} 48. Ba3
{[%clk 0:00:04]} 48... Bd2 {[%clk 0:00:53.8]} 49. f5 {[%clk 0:00:04]} 49... Bb4
{[%clk 0:00:35]} 50. Bb2 {[%clk 0:00:03.4]} 50... Bd6 {[%clk 0:00:23.1]} 51. Kc4
{[%clk 0:00:03.6]} 51... Ke7 {[%clk 0:00:17.2]} 52. Kxb3 {[%clk 0:00:03.6]}
52... Kd7 {[%clk 0:00:17.3]} 53. Kc4 {[%clk 0:00:03.4]} 53... Kc6 {[%clk
0:00:09.8]} 54. d4 {[%clk 0:00:03.3]} 54... Kd7 {[%clk 0:00:09.8]} 55. Kd5
{[%clk 0:00:03]} 55... Bb4 {[%clk 0:00:09.3]} 56. Bc1 {[%clk 0:00:02.2]} 56...
Bd6 {[%clk 0:00:09.2]} 57. Bd2 {[%clk 0:00:02.3]} 57... Be7 {[%clk 0:00:09.6]}
58. Bc3 {[%clk 0:00:02.7]} 58... Bf8 {[%clk 0:00:10.3]} 59. Kc4 {[%clk
0:00:03.1]} 59... Be7 {[%clk 0:00:10.4]} 60. Bb4 {[%clk 0:00:03.5]} 60... Bd6
{[%clk 0:00:06.2]} 61. Bxd6 {[%clk 0:00:02.5]} 61... Kxd6 {[%clk 0:00:07.1]} 62.
d5 {[%clk 0:00:02.5]} 62... Ke5 {[%clk 0:00:07.1]} 63. Kc5 {[%clk 0:00:03.2]}
63... Kf4 {[%clk 0:00:06.4]} 64. d6 {[%clk 0:00:03.8]} 64... Kxg4 {[%clk
0:00:07.1]} 65. d7 {[%clk 0:00:04.6]} 65... Kxf5 {[%clk 0:00:07.8]} 66. d8=Q
{[%clk 0:00:05.5]} 66... Kg5 {[%clk 0:00:08.5]} 67. Qe7 {[%clk 0:00:05]} 67...
g6 {[%clk 0:00:07.5]} 68. hxg6 {[%clk 0:00:04.7]} 68... Kxg6 {[%clk 0:00:07.9]}
69. Kd4 {[%clk 0:00:05.3]} 1-0

[Event "Late-Titled-Tuesday-Blitz-August-29-2023"]
[Site "Chess.com"]
[Date "2023.08.29"]
[Round "6"]
[White "KrokerGuy"]
[Black "zsoltkorpics"]
[Result "1-0"]
[WhiteElo "2500"]
[BlackElo "2376"]
[TimeControl "180+1"]
[EndTime "15:06:47 PDT"]
[Termination "KrokerGuy won by checkmate"]

1. e4 {[%clk 0:03:00.9]} 1... c5 {[%clk 0:02:59.5]} 2. Nf3 {[%clk 0:03:00.3]}
2... e6 {[%clk 0:02:59.9]} 3. d4 {[%clk 0:03:00.9]} 3... cxd4 {[%clk 0:03:00.8]}
4. Nxd4 {[%clk 0:03:01.8]} 4... Nc6 {[%clk 0:03:01.2]} 5. Nc3 {[%clk 0:03:01.6]}
5... Qc7 {[%clk 0:03:01.6]} 6. Be3 {[%clk 0:03:01]} 6... a6 {[%clk 0:03:02.1]}
7. Qd2 {[%clk 0:03:00.2]} 7... Nf6 {[%clk 0:03:01.8]} 8. O-O-O {[%clk
0:02:56.7]} 8... Be7 {[%clk 0:02:57.4]} 9. f3 {[%clk 0:02:55.6]} 9... b5 {[%clk
0:02:51.2]} 10. g4 {[%clk 0:02:48.2]} 10... Bb7 {[%clk 0:02:40.2]} 11. g5 {[%clk
0:02:37.4]} 11... Nh5 {[%clk 0:02:39.4]} 12. Nce2 {[%clk 0:02:08]} 12... Ne5
{[%clk 0:02:33.4]} 13. Ng3 {[%clk 0:01:58.2]} 13... Nxg3 {[%clk 0:02:30.8]} 14.
hxg3 {[%clk 0:01:59.1]} 14... Rc8 {[%clk 0:02:25.8]} 15. Kb1 {[%clk 0:01:43.6]}
15... Nxf3 {[%clk 0:01:21.2]} 16. Nxf3 {[%clk 0:01:38.7]} 16... Bxe4 {[%clk
0:01:21.3]} 17. Be2 {[%clk 0:00:52.8]} 17... Bb4 {[%clk 0:01:08.8]} 18. Qxb4
{[%clk 0:00:31.6]} 18... Qxc2+ {[%clk 0:00:13]} 19. Ka1 {[%clk 0:00:31]} 19...
Bc6 {[%clk 0:00:12]} 20. Rd2 {[%clk 0:00:17.2]} 20... Qf5 {[%clk 0:00:09.9]} 21.
Qf4 {[%clk 0:00:06.9]} 21... Qg6 {[%clk 0:00:07.4]} 22. Rhd1 {[%clk 0:00:03.2]}
22... Bxf3 {[%clk 0:00:03.4]} 23. Bxf3 {[%clk 0:00:02.8]} 23... d5 {[%clk
0:00:04]} 24. Bxd5 {[%clk 0:00:02.1]} 24... exd5 {[%clk 0:00:03.8]} 25. Qe5+
{[%clk 0:00:02.8]} 25... Qe6 {[%clk 0:00:03.6]} 26. Qxg7 {[%clk 0:00:02.2]}
26... Rf8 {[%clk 0:00:03.2]} 27. Qd4 {[%clk 0:00:02.2]} 27... Ke7 {[%clk
0:00:03]} 28. Bf4 {[%clk 0:00:02.9]} 28... Rfd8 {[%clk 0:00:03]} 29. Qf6+ {[%clk
0:00:03]} 29... Qxf6 {[%clk 0:00:02.7]} 30. gxf6+ {[%clk 0:00:03.9]} 30... Kxf6
{[%clk 0:00:03.6]} 31. Rxd5 {[%clk 0:00:04.6]} 31... Re8 {[%clk 0:00:03.5]} 32.
Rd6+ {[%clk 0:00:04.8]} 32... Kf5 {[%clk 0:00:03.7]} 33. Rxa6 {[%clk 0:00:04.5]}
33... Red8 {[%clk 0:00:02.6]} 34. Rxd8 {[%clk 0:00:03.9]} 34... Rxd8 {[%clk
0:00:03.5]} 35. a3 {[%clk 0:00:04.5]} 35... Rd1+ {[%clk 0:00:03.5]} 36. Ka2
{[%clk 0:00:05.2]} 36... h5 {[%clk 0:00:03.7]} 37. Rh6 {[%clk 0:00:05]} 37...
Kg4 {[%clk 0:00:02.7]} 38. Kb3 {[%clk 0:00:05.3]} 38... f5 {[%clk 0:00:03.1]}
39. Kb4 {[%clk 0:00:05.4]} 39... Rb1 {[%clk 0:00:03.9]} 40. b3 {[%clk
0:00:05.6]} 40... Kf3 {[%clk 0:00:03.7]} 41. Rxh5 {[%clk 0:00:05.6]} 41... Ke4
{[%clk 0:00:04.6]} 42. Rh8 {[%clk 0:00:05.4]} 42... Kd3 {[%clk 0:00:04.5]} 43.
Rd8+ {[%clk 0:00:05.6]} 43... Kc2 {[%clk 0:00:04.8]} 44. Rc8+ {[%clk 0:00:05.6]}
44... Kd3 {[%clk 0:00:05]} 45. Rc1 {[%clk 0:00:05.8]} 45... Rb2 {[%clk
0:00:04.9]} 46. Rc5 {[%clk 0:00:04.7]} 46... Ke4 {[%clk 0:00:05]} 47. Rxb5
{[%clk 0:00:05]} 47... Ra2 {[%clk 0:00:05]} 48. Re5+ {[%clk 0:00:05.5]} 48...
Kf3 {[%clk 0:00:05]} 49. Rxf5 {[%clk 0:00:06.3]} 49... Kg4 {[%clk 0:00:05.9]}
50. Rg5+ {[%clk 0:00:06.3]} 50... Kf3 {[%clk 0:00:05.9]} 51. a4 {[%clk 0:00:07]}
51... Rc2 {[%clk 0:00:05.9]} 52. a5 {[%clk 0:00:07.3]} 52... Rc8 {[%clk
0:00:06.8]} 53. a6 {[%clk 0:00:07.3]} 53... Rf8 {[%clk 0:00:05.2]} 54. a7 {[%clk
0:00:06.7]} 54... Ra8 {[%clk 0:00:04.4]} 55. Rg7 {[%clk 0:00:03.7]} 55... Ke4
{[%clk 0:00:03.3]} 56. Kb5 {[%clk 0:00:04.2]} 56... Kd5 {[%clk 0:00:04.2]} 57.
Kb6 {[%clk 0:00:04.9]} 57... Re8 {[%clk 0:00:02]} 58. Kb7 {[%clk 0:00:04.8]}
58... Re7+ {[%clk 0:00:01.6]} 59. Rxe7 {[%clk 0:00:04.2]} 59... Kd4 {[%clk
0:00:01.9]} 60. a8=Q {[%clk 0:00:04.4]} 60... Kc3 {[%clk 0:00:01.9]} 61. Qa5+
{[%clk 0:00:04.6]} 61... Kb2 {[%clk 0:00:02.8]} 62. Re2+ {[%clk 0:00:04.6]}
62... Kb1 {[%clk 0:00:03.7]} 63. Qe1# {[%clk 0:00:04.8]} 1-0

[Event "Late-Titled-Tuesday-Blitz-August-29-2023"]
[Site "Chess.com"]
[Date "2023.08.29"]
[Round "6"]
[White "ChEsper99"]
[Black "RCone"]
[Result "0-1"]
[WhiteElo "2164"]
[BlackElo "2446"]
[TimeControl "180+1"]
[EndTime "15:06:50 PDT"]
[Termination "RCone won by resignation"]

1. e4 {[%clk 0:02:56.6]} 1... d6 {[%clk 0:03:00.2]} 2. d4 {[%clk 0:02:55.9]}
2... Nf6 {[%clk 0:03:00.5]} 3. Nc3 {[%clk 0:02:56.3]} 3... g6 {[%clk 0:03:00.3]}
4. g3 {[%clk 0:02:52.5]} 4... Bg7 {[%clk 0:02:56.7]} 5. Bg2 {[%clk 0:02:52.7]}
5... O-O {[%clk 0:02:56.3]} 6. Nge2 {[%clk 0:02:51.8]} 6... Nc6 {[%clk
0:02:55.2]} 7. d5 {[%clk 0:02:45.9]} 7... Ne5 {[%clk 0:02:51.8]} 8. O-O {[%clk
0:02:44.7]} 8... c6 {[%clk 0:02:49.9]} 9. Bf4 {[%clk 0:02:27.9]} 9... Nh5 {[%clk
0:02:44.4]} 10. Be3 {[%clk 0:02:24.9]} 10... cxd5 {[%clk 0:02:43]} 11. exd5
{[%clk 0:02:16.3]} 11... Nc4 {[%clk 0:02:24.1]} 12. Bc1 {[%clk 0:02:05.5]} 12...
f5 {[%clk 0:01:56]} 13. b3 {[%clk 0:01:29.8]} 13... Ne5 {[%clk 0:01:54.4]} 14.
Be3 {[%clk 0:01:20.4]} 14... Bd7 {[%clk 0:01:42.8]} 15. Qd2 {[%clk 0:01:18.9]}
15... a6 {[%clk 0:01:31.4]} 16. a4 {[%clk 0:01:18]} 16... Rc8 {[%clk 0:01:30.8]}
17. Bd4 {[%clk 0:01:17.8]} 17... f4 {[%clk 0:01:21.4]} 18. Nxf4 {[%clk
0:01:13.4]} 18... Nxf4 {[%clk 0:01:17.3]} 19. gxf4 {[%clk 0:01:09.7]} 19... Ng4
{[%clk 0:01:05.6]} 20. Bxg7 {[%clk 0:01:09.7]} 20... Kxg7 {[%clk 0:01:05.6]} 21.
Qd4+ {[%clk 0:01:03.6]} 21... Kg8 {[%clk 0:00:59.8]} 22. h3 {[%clk 0:00:59.9]}
22... Nh6 {[%clk 0:00:58]} 23. Rac1 {[%clk 0:00:55.6]} 23... Qc7 {[%clk
0:00:55.6]} 24. Ne2 {[%clk 0:00:50.4]} 24... Nf5 {[%clk 0:00:55.1]} 25. Qd2
{[%clk 0:00:42.2]} 25... b5 {[%clk 0:00:46.5]} 26. axb5 {[%clk 0:00:41.9]} 26...
axb5 {[%clk 0:00:46.9]} 27. c4 {[%clk 0:00:42.4]} 27... Qb6 {[%clk 0:00:35.7]}
28. Rfd1 {[%clk 0:00:26.9]} 28... Nh4 {[%clk 0:00:34.8]} 29. Qd4 {[%clk
0:00:18.2]} 29... Qxd4 {[%clk 0:00:29.9]} 30. Nxd4 {[%clk 0:00:19.1]} 30... bxc4
{[%clk 0:00:28.8]} 31. Rxc4 {[%clk 0:00:18.8]} 31... Rxf4 {[%clk 0:00:24.8]} 32.
Rxc8+ {[%clk 0:00:10.9]} 32... Bxc8 {[%clk 0:00:25.7]} 33. b4 {[%clk 0:00:10.5]}
33... Nf5 {[%clk 0:00:19.1]} 34. Nc6 {[%clk 0:00:09.4]} 34... Rc4 {[%clk
0:00:16.2]} 35. b5 {[%clk 0:00:08.3]} 35... Bd7 {[%clk 0:00:14.7]} 36. Rb1
{[%clk 0:00:05.7]} 36... e6 {[%clk 0:00:12]} 37. dxe6 {[%clk 0:00:03.9]} 37...
Bxe6 {[%clk 0:00:12.9]} 38. Nd8 {[%clk 0:00:02.8]} 38... Bd7 {[%clk 0:00:11.4]}
39. b6 {[%clk 0:00:03.1]} 39... Rc8 {[%clk 0:00:10.2]} 40. b7 {[%clk 0:00:03.3]}
40... Rxd8 {[%clk 0:00:08.3]} 41. b8=Q {[%clk 0:00:03.6]} 41... Rxb8 {[%clk
0:00:08.9]} 42. Rxb8+ {[%clk 0:00:04]} 42... Kf7 {[%clk 0:00:09.3]} 43. Rb7
{[%clk 0:00:04.2]} 43... Ke6 {[%clk 0:00:08.6]} 44. Bf3 {[%clk 0:00:03.6]} 44...
h5 {[%clk 0:00:08]} 45. Be4 {[%clk 0:00:03.5]} 45... Ba4 {[%clk 0:00:05.3]} 46.
Bxf5+ {[%clk 0:00:03]} 46... Kxf5 {[%clk 0:00:04.3]} 47. Rb4 {[%clk 0:00:03.3]}
47... Bd7 {[%clk 0:00:03.6]} 48. Kg2 {[%clk 0:00:02.9]} 48... d5 {[%clk
0:00:02.6]} 49. Kg3 {[%clk 0:00:02.6]} 49... Be6 {[%clk 0:00:02.6]} 50. h4
{[%clk 0:00:02.6]} 50... Ke5 {[%clk 0:00:02.7]} 51. Rf4 {[%clk 0:00:02.1]} 51...
Bf5 {[%clk 0:00:03.1]} 52. Rf3 {[%clk 0:00:02.1]} 52... d4 {[%clk 0:00:03.4]}
53. Ra3 {[%clk 0:00:02]} 53... Ke4 {[%clk 0:00:03.8]} 54. Kg2 {[%clk 0:00:01]}
54... d3 {[%clk 0:00:03.9]} 55. Kf1 {[%clk 0:00:01.5]} 55... Kf3 {[%clk
0:00:03.7]} 56. Rc3 {[%clk 0:00:01.2]} 56... Kg4 {[%clk 0:00:03.8]} 57. Rc4+
{[%clk 0:00:01.7]} 57... Kf3 {[%clk 0:00:03.4]} 58. Rc3 {[%clk 0:00:01.9]} 58...
Ke4 {[%clk 0:00:02.2]} 59. Rc4+ {[%clk 0:00:02.3]} 59... Kd5 {[%clk 0:00:02.3]}
60. Rc3 {[%clk 0:00:02.8]} 60... Kd4 {[%clk 0:00:02.6]} 61. Rc8 {[%clk
0:00:03.1]} 61... Bg4 {[%clk 0:00:02.4]} 62. Rc7 {[%clk 0:00:03.4]} 62... d2
{[%clk 0:00:02.5]} 63. Rd7+ {[%clk 0:00:04]} 63... Kc3 {[%clk 0:00:03]} 64. Rc7+
{[%clk 0:00:04.6]} 64... Kb2 {[%clk 0:00:03.4]} 65. Rb7+ {[%clk 0:00:05]} 65...
Ka3 {[%clk 0:00:03.2]} 66. Ra7+ {[%clk 0:00:04.7]} 66... Kb4 {[%clk 0:00:03.8]}
67. Ra1 {[%clk 0:00:05.3]} 67... d1=Q+ {[%clk 0:00:03.8]} 68. Rxd1 {[%clk
0:00:05.7]} 68... Bxd1 {[%clk 0:00:04.7]} 69. Kg2 {[%clk 0:00:06.3]} 69... Bg4
{[%clk 0:00:04.5]} 70. Kg3 {[%clk 0:00:06.6]} 70... Bf5 {[%clk 0:00:05.4]} 0-1